lending/lending_fUSD_20250508
["ID","MTS","AMOUNT","RATE_DAILY","PERIOD"]
[360271631,1746685841015,-500.0,0.00019998,2]
[360271632,1746685841024,-500.0,0.00019998,2]
[360271633,1746685841034,-450.0,0.00019998,2]
[360271634,1746685841043,-450.0,0.00019998,2]
[360271635,1746685841053,-165.08559906,0.00019998,2]
[360271636,1746685841063,-450.0,0.00019998,2]
[360271637,1746685841072,-450.0,0.00019998,2]
[360271638,1746685841082,-8071.95,0.00019998,2]
[360271639,1746685841092,-8071.95,0.00019998,2]
[360271640,1746685841102,-450.0,0.00019998,2]
[360271641,1746685841112,-393.15,0.00019998,2]
[360271642,1746685841122,-453.66791193,0.00019998,2]
[360271643,1746685841132,-217.35357156,0.00019998,2]
[360271644,1746685841141,-2854.01,0.00019998,2]
[360271645,1746685841154,-359.10496022,0.00019998,2]
[360271646,1746685841164,-450.0,0.00019998,2]
[360271647,1746685841173,-450.0,0.00019998,2]
[360271648,1746685841184,-450.0,0.00019998,2]
[360271649,1746685841194,-450.0,0.00019998,2]
[360271650,1746685841204,-450.0,0.00019998,2]
[360271651,1746685841214,-450.0,0.00019998,2]
[360271652,1746685841223,-450.0,0.00019998,2]
[360271653,1746685841233,-450.0,0.00019999,2]
[360271654,1746685841242,-450.0,0.00019999,2]
[360271655,1746685841251,-597.41513872,0.00019999,2]
[360271656,1746685841262,-12500.0,0.00019999,2]
[360271657,1746685841272,-450.0,0.00019999,2]
[360271658,1746685841282,-819.26179484,0.00019999,2]
[360271659,1746685841292,-450.0,0.00019999,2]
[360271660,1746685841304,-450.0,0.00019999,2]
[360271661,1746685841314,-450.0,0.00019999,2]
[360271662,1746685841324,-450.0,0.00019999,2]
[360271663,1746685841333,-450.0,0.00019999,2]
[360271664,1746685841343,-450.0,0.00019999,2]
[360271665,1746685841354,-450.0,0.00019999,2]
[360271666,1746685841365,-450.0,0.00019999,2]
[360271667,1746685841374,-450.0,0.00019999,2]
[360271668,1746685841384,-234.64575144,0.00019999,2]
[360271669,1746685841393,-450.0,0.00019999,2]
[360271670,1746685841403,-450.0,0.00019999,2]
[360271671,1746685841413,-450.0,0.00019999,2]
[360271672,1746685841422,-153.08,0.00019999,2]
[360271673,1746685841431,-225.72,0.00019999,2]
[360271674,1746685841440,-450.0,0.00019999,2]
[360271675,1746685841450,-459.54979096,0.00019999,2]
[360271676,1746685841459,-431.28170763,0.00019999,2]
[360271677,1746685841469,-41449.12026752,0.00019999,2]
[360271678,1746685841478,-539.63,0.00019999,2]
[360271679,1746685841488,-539.63,0.00019999,2]
[360271680,1746685841498,-539.63,0.00019999,2]
[360271681,1746685841508,-539.63,0.00019999,2]
[360271682,1746685841518,-539.63,0.00019999,2]
[360271683,1746685841527,-539.63,0.00019999,2]
[360271684,1746685841537,-539.63,0.00019999,2]
[360271685,1746685841547,-539.63,0.00019999,2]
[360271686,1746685841556,-539.63,0.00019999,2]
[360271687,1746685841566,-539.63,0.00019999,2]
[360271688,1746685841577,-539.63,0.00019999,2]
[360271689,1746685841588,-539.63,0.00019999,2]
[360271690,1746685841599,-539.63,0.00019999,2]
[360271691,1746685841608,-539.63,0.00019999,2]
[360271692,1746685841625,-539.63,0.00019999,2]
[360271693,1746685841635,-539.63,0.00019999,2]
[360271694,1746685841645,-539.63,0.00019999,2]
[360271695,1746685841654,-539.63,0.00019999,2]
[360271696,1746685841664,-539.63,0.00019999,2]
[360271697,1746685841673,-539.63,0.00019999,2]
[360271698,1746685841683,-539.63,0.00019999,2]
[360271699,1746685841692,-539.63,0.00019999,2]
[360271700,1746685841702,-539.84768721,0.00019999,2]
[360271701,1746685841713,-463.94,0.00019999,2]
[360271702,1746685841722,-463.94,0.00019999,2]
[360271703,1746685841731,-463.94,0.00019999,2]
[360271704,1746685841741,-463.94,0.00019999,2]
[360271705,1746685841750,-463.94,0.00019999,2]
[360271706,1746685841760,-463.94,0.00019999,2]
[360271707,1746685841769,-463.94,0.00019999,2]
[360271708,1746685841779,-463.94,0.00019999,2]
[360271709,1746685841789,-463.94,0.00019999,2]
[360271710,1746685841799,-463.94,0.00019999,2]
[360271711,1746685841809,-463.94,0.00019999,2]
[360271712,1746685841819,-463.94,0.00019999,2]
[360271713,1746685841828,-463.94,0.00019999,2]
[360271714,1746685841838,-463.94,0.00019999,2]
[360271715,1746685841849,-463.94,0.00019999,2]
[360271716,1746685841862,-463.94,0.00019999,2]
[360271717,1746685841872,-463.94,0.00019999,2]
[360271718,1746685841881,-463.94,0.00019999,2]
[360271719,1746685841891,-463.94,0.00019999,2]
[360271720,1746685841901,-463.94,0.00019999,2]
[360271721,1746685841910,-463.94,0.00019999,2]
[360271722,1746685841921,-463.94,0.00019999,2]
[360271723,1746685841932,-464.15009628,0.00019999,2]
[360271724,1746685841942,-450.0,0.00019999,2]
[360271725,1746685841952,-450.0,0.00019999,2]
[360271726,1746685841962,-450.0,0.00019999,2]
[360271727,1746685841972,-450.0,0.00019999,2]
[360271728,1746685841983,-450.0,0.00019999,2]
[360271729,1746685841992,-450.0,0.00019999,2]
[360271730,1746685842002,-450.0,0.00019999,2]
[360271731,1746685842012,-450.0,0.00019999,2]
[360271732,1746685842021,-450.0,0.00019999,2]
[360271733,1746685842032,-450.0,0.00019999,2]
[360271734,1746685842042,-175.65798542,0.00019999,2]
[360271735,1746685842052,-450.0,0.00019999,2]
[360271736,1746685842062,-450.0,0.00019999,2]
[360271737,1746685842071,-450.0,0.00019999,2]
[360271738,1746685842081,-429.67069485,0.00019999,2]
[360271739,1746685842090,-8071.95,0.00019999,2]
[360271740,1746685842100,-8071.95,0.00019999,2]
[360271741,1746685842109,-8071.95,0.00019999,2]
[360271742,1746685842118,-8071.95,0.00019999,2]
[360271743,1746685842128,-8071.95,0.00019999,2]
[360271744,1746685842138,-8071.95,0.00019999,2]
[360271745,1746685842148,-8071.95,0.00019999,2]
[360271746,1746685842159,-8071.95,0.00019999,2]
[360271747,1746685842168,-8071.95,0.00019999,2]
[360271748,1746685842178,-8071.95,0.00019999,2]
[360271749,1746685842187,-8071.95,0.00019999,2]
[360271750,1746685842197,-8071.95,0.00019999,2]
[360271751,1746685842206,-8071.95,0.00019999,2]
[360271752,1746685842216,-8071.95,0.00019999,2]
[360271753,1746685842225,-8071.95,0.00019999,2]
[360271754,1746685842235,-8071.95,0.00019999,2]
[360271755,1746685842244,-8071.95,0.00019999,2]
[360271756,1746685842254,-8071.95,0.00019999,2]
[360271757,1746685842269,-8071.95,0.00019999,2]
[360271758,1746685842278,-8071.95,0.00019999,2]
[360271759,1746685842288,-8071.95,0.00019999,2]
[360271760,1746685842297,-8072.0351,0.00019999,2]
[360271761,1746685842308,-450.0,0.00019999,2]
[360271762,1746685842319,-450.0,0.00019999,2]
[360271763,1746685842328,-450.0,0.00019999,2]
[360271764,1746685842338,-257.30948622,0.00019999,2]
[360271765,1746685842348,-2854.01,0.00019999,2]
[360271766,1746685842358,-2854.01,0.00019999,2]
[360271767,1746685842367,-2854.01,0.00019999,2]
[360271768,1746685842377,-2854.01,0.00019999,2]
[360271770,1746685842387,-2854.01,0.00019999,2]
[360271772,1746685842397,-2854.01,0.00019999,2]
[360271773,1746685842407,-2854.01,0.00019999,2]
[360271775,1746685842416,-2854.01,0.00019999,2]
[360271778,1746685842426,-2854.01,0.00019999,2]
[360271780,1746685842437,-2854.01,0.00019999,2]
[360271782,1746685842448,-2854.01,0.00019999,2]
[360271783,1746685842458,-2854.01,0.00019999,2]
[360271784,1746685842468,-2854.01,0.00019999,2]
[360271785,1746685842478,-2854.01,0.00019999,2]
[360271786,1746685842487,-2854.01,0.00019999,2]
[360271787,1746685842497,-2854.01,0.00019999,2]
[360271789,1746685842507,-2854.01,0.00019999,2]
[360271791,1746685842522,-2854.01,0.00019999,2]
[360271793,1746685842534,-2854.01,0.00019999,2]
[360271795,1746685842544,-2854.01,0.00019999,2]
[360271796,1746685842554,-2854.01,0.00019999,2]
[360271797,1746685842564,-2854.19986984,0.00019999,2]
[360271798,1746685842574,-450.0,0.00019999,2]
[360271800,1746685842584,-450.0,0.00019999,2]
[360271803,1746685842594,-450.0,0.00019999,2]
[360271804,1746685842604,-450.0,0.00019999,2]
[360271805,1746685842614,-450.0,0.00019999,2]
[360271806,1746685842624,-450.0,0.00019999,2]
[360271807,1746685842634,-297.8496,0.00019999,2]
[360271808,1746685842644,-576.58390231,0.00019999,2]
[360271809,1746685842898,-300.0,0.00019999,2]
[360271810,1746685842910,-500.0,0.00019999,2]
[360271811,1746685842920,-316.92037296,0.00019999,2]
[360271812,1746685842931,-357.22436642,0.0002,2]
[360271813,1746685842940,-351435.08584059,0.0002,2]
[360271814,1746685842961,-7086.45674815,0.0002,2]
[360271815,1746685842973,-4939.780016,0.0002,2]
[360271816,1746685842985,-3070.5981233,0.0002,2]
[360271817,1746685842997,-3255.66817225,0.0002,2]
[360271818,1746685843009,-3866.95019455,0.0002,2]
[360271819,1746685843127,-572.86316319,0.000199,2]
[360271820,1746685843153,-2.38108416,0.000199,2]
[360271821,1746685843164,-649.16891584,0.0002,2]
[360271822,1746685843203,-867.26658096,0.0002,2]
[360271842,1746685845498,-326.73,0.000199,2]
[360271843,1746685845511,-712.682,0.000199,2]
[360271844,1746685845654,-1572.6458,0.000199,2]
[360271845,1746685845665,-886.06971484,0.0002,2]
[360271846,1746685848234,206.0,0.000194,2]
[360271848,1746685890445,250.0,0.00019326,2]
[360271849,1746685922342,1000.0,0.00019298,2]
[360271851,1746685991947,150.0,0.0003,30]
[360271852,1746686267872,5000.0,0.0003,30]
[360271853,1746686297596,-11675.87693786,0.0004383,30]
[360271854,1746686297626,-162.23997339,0.0004383,60]
[360271855,1746686297654,-243.98013556,0.0004383,30]
[360271856,1746686297683,-242.47183753,0.0004383,30]
[360271857,1746686297711,-1449.62526099,0.0004383,120]
[360271858,1746686297736,-476.42593376,0.0004383,120]
[360271859,1746686297767,-590260.57668899,0.0004383,30]
[360271860,1746686297793,-2022.63413683,0.0004383,120]
[360271861,1746686297819,-192.67139835,0.0004383,30]
[360271862,1746686297844,-1832.01221605,0.0004383,30]
[360271863,1746686297870,-249.37853283,0.0004383,120]
[360271864,1746686297895,-670.2863874,0.0004383,120]
[360271865,1746686297921,-1112.47510427,0.0004383,120]
[360271866,1746686297948,-3234.3608978,0.0004383,60]
[360271867,1746686297975,-323.02414531,0.0004383,120]
[360271868,1746686298006,-185.01029149,0.0004383,120]
[360271869,1746686298034,-1189.17511043,0.0004383,120]
[360271870,1746686298062,-526.84791517,0.0004383,120]
[360271871,1746686298090,-1092.94679295,0.0004383,120]
[360271872,1746686298117,-1500.0,0.0004383,30]
[360271873,1746686298143,-200.49152121,0.0004383,30]
[360271874,1746686298171,-179.75029237,0.0004383,120]
[360271875,1746686298199,-578.88746519,0.0004383,30]
[360271876,1746686298225,-504.34335938,0.0004383,30]
[360271877,1746686298251,-269.21583345,0.0004383,60]
[360271878,1746686298283,-586.0,0.0004383,30]
[360271879,1746686298310,-2139.0,0.0004383,120]
[360271880,1746686298336,-193.70100188,0.0004383,60]
[360271881,1746686298362,-1000.0,0.0004383,30]
[360271882,1746686298388,-298.0,0.0004383,31]
[360271883,1746686298414,-519.28179956,0.0004383,30]
[360271884,1746686298440,-1074.0,0.0004383,30]
[360271885,1746686298467,-1074.0,0.0004383,30]
[360271886,1746686298492,-1074.0,0.0004383,30]
[360271887,1746686298518,-208.2,0.0004383,30]
[360271888,1746686298543,-3080.22595625,0.0004383,120]
[360271889,1746686298568,-1676.0921103,0.0004383,120]
[360271890,1746686298595,-1025.97665451,0.0004383,30]
[360271891,1746686298620,-114893.27186075,0.0004383,60]
[360271892,1746686298645,-1043.0,0.0004383,30]
[360271893,1746686298672,-160.0,0.0004383,30]
[360271894,1746686298699,-160.0,0.0004383,30]
[360271895,1746686298724,-160.0,0.0004383,30]
[360271896,1746686298750,-160.0,0.0004383,30]
[360271897,1746686298776,-160.0,0.0004383,30]
[360271898,1746686298802,-160.0,0.0004383,30]
[360271899,1746686298828,-160.0,0.0004383,30]
[360271900,1746686298854,-160.0,0.0004383,30]
[360271901,1746686298880,-160.0,0.0004383,30]
[360271902,1746686298906,-160.0,0.0004383,30]
[360271903,1746686298932,-160.0,0.0004383,30]
[360271904,1746686298959,-160.0,0.0004383,30]
[360271905,1746686298984,-160.0,0.0004383,30]
[360271906,1746686299012,-160.0,0.0004383,30]
[360271907,1746686299043,-160.0,0.0004383,30]
[360271908,1746686299068,-160.0,0.0004383,30]
[360271909,1746686299096,-160.0,0.0004383,30]
[360271910,1746686299122,-160.0,0.0004383,30]
[360271911,1746686299147,-160.0,0.0004383,30]
[360271912,1746686299172,-160.0,0.0004383,30]
[360271913,1746686299198,-160.0,0.0004383,30]
[360271914,1746686299223,-160.0,0.0004383,30]
[360271915,1746686299251,-160.0,0.0004383,30]
[360271916,1746686299276,-160.0,0.0004383,30]
[360271917,1746686299304,-160.0,0.0004383,30]
[360271918,1746686299331,-160.0,0.0004383,30]
[360271919,1746686299356,-160.0,0.0004383,30]
[360271920,1746686299578,-160.0,0.0004383,30]
[360271921,1746686299608,-160.0,0.0004383,30]
[360271922,1746686299635,-160.0,0.0004383,30]
[360271923,1746686299661,-11237.24402814,0.0004383,120]
[360271924,1746686299688,-1332.81167111,0.0004383,120]
[360271925,1746686299713,-442.92101244,0.0004383,30]
[360271926,1746686299738,-249.59742097,0.0004383,30]
[360271927,1746686299762,-913.47657746,0.0004383,120]
[360271928,1746686299788,-285.46726564,0.0004383,120]
[360271929,1746686299813,-304.16181685,0.0004383,120]
[360271930,1746686299840,-1381.95888839,0.0004383,30]
[360271931,1746686299865,-1721.49560183,0.0004383,120]
[360271932,1746686299889,-173.7906675,0.0004383,120]
[360271933,1746686299914,-1000.71097306,0.0004383,120]
[360271934,1746686299939,-161189.61164591,0.0004383,120]
[360271935,1746686299966,-1474.6067586,0.0004383,60]
[360271936,1746686299991,-787.09389041,0.0004383,90]
[360271937,1746686300019,-3691.18356706,0.0004383,120]
[360271938,1746686300048,-715.633803,0.0004383,120]
[360271939,1746686300075,-1410.9250132,0.0004383,120]
[360271940,1746686300100,-317.04947756,0.0004383,60]
[360271941,1746686300127,-249.24017819,0.0004383,30]
[360271942,1746686300153,-278.10630171,0.0004383,120]
[360271943,1746686300178,-1570.36261141,0.0004383,120]
[360271944,1746686300203,-273.70055623,0.0004383,120]
[360271945,1746686300232,-235.75118502,0.0004383,120]
[360271946,1746686300260,-289.52227411,0.0004383,60]
[360271947,1746686300284,-311.98185539,0.0004383,120]
[360271948,1746686300310,-692.70649961,0.0004383,120]
[360271949,1746686300338,-263.15758289,0.0004383,30]
[360271950,1746686300365,-508.79579312,0.0004383,120]
[360271951,1746686300390,-1262.55918449,0.0004383,120]
[360271952,1746686300415,-685.26589944,0.0004383,120]
[360271953,1746686300440,-896.82954617,0.0004383,120]
[360271954,1746686300468,-180.46931577,0.0004383,120]
[360271955,1746686300494,-1025.61005932,0.0004383,120]
[360271956,1746686300519,-164.79146052,0.0004383,30]
[360271957,1746686300544,-210.93874165,0.0004383,30]
[360271958,1746686300568,-584.59124882,0.0004383,30]
[360271959,1746686300591,-1268.90718825,0.0004383,120]
[360271960,1746686300616,-844.66470763,0.0004383,120]
[360271961,1746686300640,-649.5041646,0.0004383,120]
[360271962,1746686300664,-502.77387871,0.0004383,30]
[360271963,1746686300689,-258.28208379,0.0004383,30]
[360271964,1746686300714,-256.00459006,0.0004383,30]
[360271965,1746686300738,-3183.81605,0.0004383,120]
[360271966,1746686300763,-20000.0,0.0004383,60]
[360271967,1746686300788,-46170.4274,0.0004383,50]
[360271968,1746686300813,-2360.0,0.0004383,90]
[360271969,1746686300838,-997.88,0.0004383,120]
[360271970,1746686300864,-1000.0,0.0004383,120]
[360271971,1746686300888,-1000.0,0.0004383,120]
[360271972,1746686300913,-521.0,0.0004383,30]
[360271973,1746686300938,-9879.0,0.0004383,80]
[360271974,1746686300963,-8664.0434117,0.0004383,120]
[360271975,1746686300990,-3176.13450087,0.0004383,120]
[360271976,1746686301017,-5000.0,0.0004383,30]
[360271977,1746686301043,-4494.8865793,0.0004383,50]
[360271978,1746686301067,-261.0,0.0004383,30]
[360271979,1746686301095,-311.0,0.0004383,120]
[360271980,1746686301120,-11801.61516262,0.0004383,120]
[360271981,1746686301144,-961.7401014,0.0004383,120]
[360271982,1746686301170,-7138.07399972,0.0004383,120]
[360271983,1746686301195,-2902287.58524478,0.0004383,30]
[360271984,1746686301227,-1145.96025242,0.0004383,120]
[360271985,1746686301252,-173.0,0.0004383,120]
[360271986,1746686301277,-214.3,0.0004383,30]
[360271987,1746686301303,-715.140052,0.0004383,120]
[360271988,1746686301328,-186.69113833,0.0004383,60]
[360271989,1746686301353,-800.0,0.0004383,30]
[360271990,1746686301378,-1367.0,0.0004383,120]
[360271991,1746686301403,-2065.5674522,0.0004383,30]
[360271992,1746686301427,-9365.0,0.0004383,30]
[360271993,1746686301453,-2060.95788834,0.0004383,31]
[360271994,1746686301478,-3000.0,0.0004383,31]
[360271995,1746686301503,-156.4,0.0004383,30]
[360271996,1746686301528,-992388.06622848,0.0004383,30]
[360271997,1746686305988,-2141222.81089639,0.0004383,30]
[360271998,1746686306018,-994.0,0.0004383,120]
[360271999,1746686306045,-189.72902844,0.0004383,91]
[360272000,1746686306070,-14821.09904994,0.0004383,120]
[360272001,1746686306097,-1389.37270189,0.0004383,120]
[360272002,1746686306122,-11531.47297734,0.0004383,30]
[360272003,1746686306147,-5292.71259161,0.0004383,60]
[360272004,1746686306172,-1521.53595104,0.0004383,30]
[360272005,1746686306198,-68597.16783266,0.0004383,60]
[360272006,1746686306222,-6285.53952778,0.0004383,120]
[360272007,1746686306249,-3562.35111939,0.0004383,120]
[360272008,1746686306274,-497.84716942,0.0004383,120]
[360272009,1746686306298,-577.4615584,0.0004383,120]
[360272010,1746686306323,-2000.0,0.0004383,31]
[360272011,1746686306347,-1022.58931704,0.0004383,30]
[360272012,1746686306372,-58303.10546849,0.0004383,120]
[360272013,1746686306396,-2938.28634985,0.0004383,90]
[360272014,1746686306423,-4539.11023074,0.0004383,30]
[360272015,1746686306448,-6300.0,0.0004383,120]
[360272016,1746686306473,-4359.51183668,0.0004383,120]
[360272017,1746686306499,-43902.34,0.0004383,30]
[360272018,1746686306525,-350.0,0.0004383,120]
[360272019,1746686306551,-500.0,0.0004383,120]
[360272020,1746686306577,-500.0,0.0004383,120]
[360272021,1746686306602,-257.87183975,0.0004383,120]
[360272022,1746686306628,-316800.0,0.0004383,30]
[360272023,1746686306653,-830.08,0.0004383,120]
[360272024,1746686306678,-830.08,0.0004383,120]
[360272025,1746686306703,-830.08,0.0004383,120]
[360272026,1746686306729,-830.08,0.0004383,120]
[360272027,1746686306754,-830.08,0.0004383,120]
[360272028,1746686306780,-830.08,0.0004383,120]
[360272029,1746686306805,-830.08,0.0004383,120]
[360272030,1746686306831,-830.08,0.0004383,120]
[360272031,1746686306856,-830.08,0.0004383,120]
[360272032,1746686306881,-830.08,0.0004383,120]
[360272033,1746686306906,-830.08,0.0004383,120]
[360272034,1746686306931,-830.08,0.0004383,120]
[360272035,1746686306956,-830.08,0.0004383,120]
[360272036,1746686306981,-830.08,0.0004383,120]
[360272037,1746686307007,-830.08,0.0004383,120]
[360272038,1746686307035,-830.08,0.0004383,120]
[360272039,1746686307064,-830.08,0.0004383,120]
[360272040,1746686307090,-830.08,0.0004383,120]
[360272041,1746686307115,-830.08,0.0004383,120]
[360272042,1746686307142,-830.08,0.0004383,120]
[360272043,1746686307170,-830.08,0.0004383,120]
[360272044,1746686307197,-830.08,0.0004383,120]
[360272045,1746686307226,-830.08,0.0004383,120]
[360272046,1746686307254,-830.16671626,0.0004383,120]
[360272047,1746686307286,-2516.69,0.0004383,120]
[360272048,1746686307314,-2516.69,0.0004383,120]
[360272049,1746686307340,-2516.69,0.0004383,120]
[360272050,1746686307367,-2516.69,0.0004383,120]
[360272051,1746686307395,-2516.69,0.0004383,120]
[360272052,1746686307424,-2516.69,0.0004383,120]
[360272053,1746686307453,-2516.69,0.0004383,120]
[360272054,1746686307480,-2516.69,0.0004383,120]
[360272055,1746686307505,-2516.69,0.0004383,120]
[360272056,1746686307533,-2516.69,0.0004383,120]
[360272057,1746686307561,-2516.69,0.0004383,120]
[360272058,1746686307587,-2516.69,0.0004383,120]
[360272059,1746686307612,-2516.69,0.0004383,120]
[360272060,1746686307638,-2516.69,0.0004383,120]
[360272061,1746686307666,-2516.69,0.0004383,120]
[360272062,1746686307692,-2516.69,0.0004383,120]
[360272063,1746686307717,-2516.69,0.0004383,120]
[360272064,1746686307743,-2516.69,0.0004383,120]
[360272065,1746686307768,-2516.69,0.0004383,120]
[360272066,1746686307795,-2516.69,0.0004383,120]
[360272067,1746686307821,-2516.69,0.0004383,120]
[360272068,1746686307847,-2516.69,0.0004383,120]
[360272069,1746686307872,-2516.69,0.0004383,120]
[360272070,1746686307897,-2516.84358059,0.0004383,120]
[360272071,1746686307921,-765.56163167,0.0004383,30]
[360272074,1746686339325,4951.50868808,0.0003,30]
[360272075,1746686352060,150.0,0.000195,2]
[360272076,1746686403185,161.84985446,0.00030137,120]
[360272077,1746686403217,680.27563879,0.00030137,120]
[360272078,1746686406814,1973.93,0.0003013,120]
[360272079,1746686469861,900.73905683,0.0003,30]
[360272080,1746686492291,5908.90765965,0.000195,2]
[360272082,1746686594639,179.05,0.00018949,2]
[360272083,1746686597813,500.0,0.00030137,120]
[360272084,1746686657509,678.0,0.0003,30]
[360272085,1746686690287,223.7,0.00030137,120]
[360272086,1746686702703,200.0,0.00018948,2]
[360272087,1746686724954,700.0,0.00030136,120]
[360272088,1746686725264,700.0,0.00030136,120]
[360272089,1746686725498,700.0,0.00030136,120]
[360272090,1746686725827,700.0,0.00030136,120]
[360272091,1746686726034,700.0,0.00030136,120]
[360272092,1746686726662,154.34250534,0.00030136,120]
[360272093,1746686738622,150.0,0.00018,2]
[360272094,1746686776739,534.48,0.00019097,2]
[360272095,1746686869950,457.43,0.0001699,2]
[360272096,1746686870186,457.43,0.00019254,2]
[360272097,1746686938375,1000.0,0.00018906,2]
[360272098,1746686959366,250.0,0.00018959,2]
[360272100,1746686963640,250.0,0.00017,2]
[360272101,1746686964708,300.0,0.00019,2]
[360272102,1746686977591,1333.0,0.00029041,120]
[360272105,1746687017626,1487.38634815,0.0003,30]
[360272115,1746687031619,-165.3,0.00019559,2]
[360272116,1746687031630,-250.0,0.00019564,2]
[360272117,1746687031639,-538.04999998,0.00019599,2]
[360272118,1746687031651,-661.95000002,0.00019599,2]
[360272119,1746687031660,-300.0,0.00019599,2]
[360272120,1746687031670,-300.0,0.00019599,2]
[360272121,1746687031679,-206.0,0.000196,2]
[360272122,1746687031690,-3402.57252909,0.000196,2]
[360272123,1746687031699,-8369.54165958,0.000196,2]
[360272124,1746687031711,-845.72788746,0.000196,2]
[360272125,1746687031724,-40552.72771712,0.000196,2]
[360272126,1746687031734,-4405.0,0.00019698,2]
[360272127,1746687031744,-3379.0,0.00019796,2]
[360272128,1746687031753,-8080.43676561,0.00019799,2]
[360272129,1746687031763,-206.0,0.000198,2]
[360272130,1746687031773,-10636.08872364,0.00019828,2]
[360272131,1746687031782,-4278.12347895,0.0001984,2]
[360272132,1746687031792,-10110.58767938,0.00019843,2]
[360272133,1746687031833,-525.50104426,0.00019843,2]
[360272134,1746687031843,-100.55268534,0.00019846,2]
[360272135,1746687031854,-2571.79212204,0.00019846,2]
[360272136,1746687031867,-4463.60175122,0.00019846,2]
[360272137,1746687031878,-2848.76756245,0.00019846,2]
[360272138,1746687031890,-15331.19485234,0.00019846,2]
[360272139,1746687031900,-3860.1161142,0.00019852,2]
[360272140,1746687031910,-25315.90897339,0.00019855,2]
[360272141,1746687031921,-6792.67019092,0.00019856,2]
[360272142,1746687031930,-3555.44552833,0.00019859,2]
[360272143,1746687032010,-2889.18649373,0.00019859,2]
[360272146,1746687032031,-922.52755792,0.00019859,2]
[360272149,1746687032042,-713.27718563,0.00019859,2]
[360272151,1746687032051,-1888.72281437,0.00019872,2]
[360272153,1746687032063,-1971.39329983,0.00019872,2]
[360272155,1746687032073,-3621.508875,0.00019873,2]
[360272157,1746687032084,-6792.67019092,0.00019876,2]
[360272159,1746687032094,-4278.12347895,0.00019894,2]
[360272161,1746687032103,-1130.72589376,0.00019894,2]
[360272163,1746687032123,-387.13222533,0.00019894,2]
[360272223,1746687038062,-531.63683674,0.00019894,2]
[360272224,1746687038089,-1462.9598881,0.00019894,2]
[360272225,1746687038102,-1484.54515607,0.00019894,2]
[360272226,1746687038112,-1795.18784839,0.00019896,2]
[360272227,1746687038123,-827.22703372,0.00019896,2]
[360272228,1746687038139,-366.12785766,0.00019896,2]
[360272229,1746687038165,-632.96613523,0.00019896,2]
[360272230,1746687038175,-572.83478049,0.00019899,2]
[360272231,1746687038186,-924.49419444,0.00019899,2]
[360272232,1746687038195,-607.51047711,0.00019899,2]
[360272233,1746687038206,-924.49419437,0.00019899,2]
[360272234,1746687038215,-924.49419437,0.00019899,2]
[360272235,1746687038226,-924.49419437,0.00019899,2]
[360272236,1746687038237,-924.49419437,0.00019899,2]
[360272237,1746687038249,-924.49419437,0.000199,2]
[360272238,1746687038261,-924.49419437,0.000199,2]
[360272239,1746687038272,-3809.2832,0.000199,2]
[360272240,1746687038281,-924.49419437,0.000199,2]
[360272241,1746687038291,-924.49419437,0.000199,2]
[360272242,1746687038303,-163.99829766,0.000199,2]
[360272243,1746687038315,-495.850527,0.000199,2]
[360272244,1746687038326,-5.01024007,0.000199,2]
[360272245,1746687038341,-919.4839543,0.000199,2]
[360272246,1746687038350,-1000.0,0.000199,2]
[360272247,1746687038359,-161.92888696,0.000199,2]
[360272248,1746687038369,-1285.45463586,0.000199,2]
[360272249,1746687038378,-1484.12487908,0.000199,2]
[360272250,1746687038387,-14081.11896892,0.000199,2]